bitfinex/quotes_BTCUSD_20241025
["timestamp","ask_amount","ask_price","bid_price","bid_amount"]
[1729884390437,0.15050381,67011.0,67008.0,0.149235]
[1729884390665,0.15050381,67011.0,67006.0,0.29848]
[1729884390906,0.15050381,67011.0,67010.0,0.149231]
[1729884391353,0.001692,67013.0,67011.0,0.149228]
[1729884391590,0.15219581,67013.0,67012.0,0.149227]
[1729884391783,0.15419581,67013.0,67004.0,0.00582]
[1729884392045,0.15419581,67013.0,67012.0,0.149227]
[1729884392237,0.15219581,67013.0,67012.0,0.149227]
[1729884392486,0.001692,67013.0,67012.0,0.149227]
[1729884393875,0.001692,67013.0,67005.0,0.52864568]
[1729884394096,0.001692,67013.0,67010.0,0.14923]
[1729884394341,0.001692,67013.0,67012.0,0.149227]
[1729884394765,0.001692,67013.0,67008.0,0.298471]
[1729884395027,0.003692,67013.0,67009.0,0.298467]
[1729884395262,0.003692,67013.0,67011.0,0.149228]
[1729884395715,0.002,67010.0,67006.0,0.303479]
[1729884396177,0.002,67011.0,67006.0,0.303478]
[1729884396434,0.22516268,67008.0,66996.0,0.149261]
[1729884396709,0.0186192,67011.0,67001.0,0.22516268]
[1729884396710,0.002,67006.0,67001.0,0.22516268]
[1729884396921,0.15250381,67005.0,67001.0,0.22516268]
[1729884397150,0.15050381,67005.0,67001.0,0.149249]
[1729884397383,0.15050381,67005.0,67004.0,0.150064]
[1729884398283,0.15050381,67005.0,67004.0,0.00082]
[1729884400792,0.151232,67010.0,67008.0,0.149235]
[1729884400793,0.04382505,67010.0,67008.0,0.149235]
[1729884401029,0.04382505,67010.0,67009.0,0.149233]
[1729884401249,0.04551705,67013.0,67006.0,0.29848]
[1729884401470,0.15050381,67012.0,67011.0,0.149229]
[1729884401924,0.04562145,67013.0,67012.0,0.149227]
[1729884402140,0.04562145,67013.0,67008.0,0.298471]
[1729884402377,0.04562145,67013.0,67012.0,0.149227]
[1729884402599,0.06758618,67013.0,67012.0,0.149227]
[1729884403531,0.001692,67013.0,67012.0,0.149227]
[1729884403741,0.001692,67013.0,67012.0,0.3884344]
[1729884404199,0.001692,67013.0,67012.0,0.3934344]
[1729884405882,0.001692,67013.0,67012.0,0.3884344]
[1729884406117,0.001692,67013.0,67012.0,0.154227]
[1729884406368,0.001692,67013.0,67012.0,0.149227]
[1729884406606,0.001692,67013.0,67012.0,0.3934344]
[1729884410464,0.001692,67013.0,67012.0,0.54393821]
[1729884411767,0.001692,67013.0,67012.0,0.61983821]
[1729884412642,0.001692,67013.0,67012.0,0.85404561]
[1729884412854,0.001692,67013.0,67012.0,0.61983821]
[1729884414444,0.001692,67013.0,67012.0,0.53970824]
[1729884415337,0.001692,67013.0,67012.0,0.69878567]
[1729884415565,0.001692,67013.0,67012.0,0.54470824]
[1729884415776,0.001692,67013.0,67012.0,0.69878567]
[1729884417508,0.001692,67013.0,67012.0,0.54470824]
[1729884418853,0.001692,67013.0,67012.0,0.38920443]
[1729884420197,0.001692,67013.0,67012.0,0.31330443]
[1729884421998,0.001692,67013.0,67012.0,0.31830443]
[1729884422206,0.04407627,67022.0,67021.0,0.149206]
[1729884422418,0.04407332,67023.0,67022.0,0.005]
[1729884422656,0.06610999,67025.0,67024.0,0.1492]
[1729884422876,0.31330933,67026.0,67025.0,0.149198]
[1729884422877,0.08814665,67026.0,67025.0,0.149198]
[1729884423121,0.001692,67027.0,67026.0,0.149195]
[1729884423122,0.08983865,67027.0,67026.0,0.149195]
[1729884423332,0.06781323,67027.0,67026.0,0.154195]
[1729884423774,0.001692,67027.0,67026.0,0.154195]
[1729884424487,0.001692,67027.0,67026.0,0.38816924]
[1729884424935,0.04576882,67027.0,67026.0,0.38816924]
[1729884425221,0.001692,67027.0,67026.0,0.38816924]
[1729884425413,0.06780327,67027.0,67026.0,0.38816924]
[1729884425634,0.06780327,67027.0,67026.0,0.154195]
[1729884426724,0.001692,67027.0,67026.0,0.154195]
[1729884427588,0.06779744,67027.0,67026.0,0.154195]
[1729884427888,0.001692,67027.0,67019.0,0.154209]
[1729884428109,0.001692,67027.0,67015.0,0.005]
[1729884428110,0.08812048,67020.0,67015.0,0.005]
[1729884428346,0.47712379,67026.0,67021.0,0.37436868]
[1729884428558,0.44408035,67025.0,67018.0,0.149212]
[1729884428794,0.11016569,67019.0,67018.0,0.149213]
[1729884429018,0.25079583,67019.0,67018.0,0.149213]
[1729884429256,0.16266237,67019.0,67017.0,0.29843]
[1729884429486,0.25080031,67018.0,67017.0,0.447645]
[1729884429929,0.08813809,67019.0,67017.0,0.29843]
[1729884430155,0.08813809,67019.0,67018.0,0.149213]
[1729884430371,0.25081484,67019.0,67018.0,0.149213]
[1729884430581,0.08813809,67019.0,67018.0,0.149213]
[1729884430805,0.11017261,67019.0,67017.0,0.298431]
[1729884431032,0.27284936,67018.0,67017.0,0.149215]
[1729884431158,0.11017261,67018.0,67017.0,0.149215]
[1729884431379,0.11017261,67018.0,67016.0,0.149217]
[1729884431579,0.11017261,67018.0,67017.0,0.149215]
[1729884432010,0.16267675,67018.0,67016.0,0.298436]
[1729884432222,0.16267675,67017.0,67016.0,0.447654]
[1729884432424,0.16267675,67017.0,67016.0,0.298436]
[1729884432813,0.11017261,67018.0,67017.0,0.149215]
[1729884433078,0.11017261,67018.0,67017.0,0.159215]
[1729884433275,0.0440816,67018.0,67017.0,0.159215]
[1729884433458,0.0881632,67021.0,67017.0,0.159215]
[1729884433459,0.0440816,67020.0,67019.0,0.154211]
[1729884433687,0.0440816,67022.0,67021.0,0.005]
[1729884433868,0.0440816,67022.0,67021.0,0.154206]
[1729884434906,0.0661224,67023.0,67022.0,0.149204]
[1729884435254,0.0661224,67023.0,67022.0,0.154204]
[1729884435821,0.06620364,67023.0,67022.0,0.452612]
[1729884437385,0.06620364,67024.0,67023.0,0.154202]
[1729884437606,0.69727013,67024.0,67000.0,0.005]
[1729884437846,0.69727013,67024.0,67012.0,0.29973851]
[1729884437847,0.51497807,67013.0,67012.0,0.29973851]
[1729884438304,0.51497807,67013.0,66993.0,0.22516268]
[1729884438305,0.149251,67001.0,67000.0,0.22516268]
[1729884438314,0.411651,67001.0,67000.0,0.22434268]
[1729884438526,1.05998092,67001.0,67000.0,0.22434268]
[1729884438741,1.05998092,67001.0,66993.0,0.22516268]
[1729884438742,0.005,66996.0,66993.0,0.22516268]
[1729884438956,0.31349138,66995.0,66993.0,0.22516268]
[1729884439175,0.16298757,66994.0,66993.0,0.22516268]
[1729884439433,0.31349138,66994.0,66986.0,0.22516268]
[1729884439643,0.08821322,66989.0,66986.0,0.22516268]
[1729884439925,0.06615991,66987.0,66982.0,0.005]
[1729884440188,0.04410651,66984.0,66982.0,0.005]
[1729884440406,0.04408543,66985.0,66984.0,0.149288]
[1729884440663,0.19458924,66985.0,66976.0,0.000821]
[1729884440897,0.0440783,66979.0,66976.0,0.000821]
[1729884441128,0.31320129,66984.0,66977.0,0.22516268]
[1729884441129,0.19458211,66978.0,66977.0,0.22516268]
[1729884441362,0.19458211,66978.0,66976.0,0.000821]
[1729884441363,0.15050381,66978.0,66976.0,0.000821]
[1729884441603,0.15050381,66978.0,66970.0,0.21880468]
[1729884441817,0.04404486,66976.0,66968.0,0.22516268]
[1729884442033,0.04404486,66976.0,66970.0,0.149319]
[1729884442034,0.15050381,66975.0,66970.0,0.149319]
[1729884442243,0.04401508,66977.0,66975.0,0.149307]
[1729884442458,0.3133759,66983.0,66975.0,0.149307]
[1729884442459,0.04401508,66979.0,66975.0,0.149307]
[1729884442684,0.04401508,66979.0,66977.0,0.149304]
[1729884443187,0.04401508,66981.0,66975.0,0.005]
[1729884443400,0.04401508,66981.0,66977.0,0.149304]
[1729884443619,0.04401508,66981.0,66975.0,0.005]
[1729884444062,0.04401508,66981.0,66977.0,0.149303]
[1729884444285,0.04401508,66982.0,66975.0,0.005]
[1729884444792,0.04401508,66982.0,66976.0,0.298614]
[1729884445021,0.04401508,66982.0,66978.0,0.149302]
[1729884445263,0.19451889,66983.0,66976.0,0.447919]
[1729884445474,0.19451889,66983.0,66975.0,0.303617]
[1729884445680,0.19451889,66983.0,66975.0,0.154308]
[1729884445900,0.19451889,66983.0,66976.0,0.149305]
[1729884446117,0.34381089,66983.0,66975.0,0.005]
[1729884446354,0.34381089,66983.0,66973.0,0.149311]
[1729884446355,0.15050381,66983.0,66973.0,0.149311]
[1729884446834,0.37566649,66982.0,66972.0,0.005]
[1729884447061,0.37566649,66982.0,66960.0,0.22516268]
[1729884447062,0.29862,66975.0,66963.0,0.005]
[1729884447269,0.29862,66975.0,66969.0,0.22516268]
[1729884447270,0.15050381,66974.0,66969.0,0.22516268]
[1729884447478,0.29981581,66974.0,66964.0,0.005]
[1729884447744,0.15050381,66974.0,66964.0,0.005]
[1729884447992,0.22516268,66973.0,66964.0,0.005]
[1729884448209,0.0818,66970.0,66960.0,0.149341]
[1729884448417,0.0818,66970.0,66959.0,0.005]
[1729884448418,0.15050381,66969.0,66962.0,0.22516268]
[1729884448836,0.15050381,66969.0,66961.0,0.14934]
[1729884449269,0.15050381,66969.0,66962.0,0.149337]
[1729884449493,0.15050381,66969.0,66960.0,0.149342]
[1729884449708,0.15050381,66969.0,66960.0,0.149341]
[1729884449918,0.15050381,66969.0,66962.0,0.149337]
[1729884451004,0.15050381,66969.0,66959.0,0.303686]
[1729884451237,0.15050381,66969.0,66959.0,0.005]
[1729884451681,0.15050381,66969.0,66961.0,0.298681]
[1729884451916,0.15050381,66969.0,66963.0,0.22516268]
[1729884452133,0.22516268,66974.0,66973.0,0.149313]
[1729884452341,0.22516268,66974.0,66964.0,0.01]
[1729884452342,0.37566649,66974.0,66969.0,0.298645]
[1729884452558,0.154304,66978.0,66969.0,0.149321]
[1729884452780,0.15050381,66977.0,66967.0,0.005]
[1729884452986,0.15050381,66977.0,66968.0,0.447973]
[1729884453207,0.15050381,66977.0,66968.0,0.29865]
[1729884453447,0.15050381,66977.0,66965.0,0.005]
[1729884454087,0.149315,66973.0,66965.0,0.005]
[1729884454305,0.15050381,66972.0,66965.0,0.005]
[1729884454511,0.15050381,66972.0,66966.0,0.149328]
[1729884455635,0.15050381,66972.0,66962.0,0.005]
[1729884455862,0.15050381,66972.0,66964.0,0.22516268]
[1729884456081,0.15050381,66972.0,66964.0,0.149332]
[1729884456504,0.14932,66970.0,66963.0,0.005]
[1729884456739,0.15050381,66972.0,66964.0,0.149332]
[1729884457167,0.149322,66969.0,66963.0,0.005]
[1729884457388,0.15050381,66972.0,66963.0,0.005]
[1729884457622,0.15050381,66972.0,66950.0,0.005]
[1729884457623,0.15437486,66968.0,66955.0,0.005]
[1729884457832,0.29983181,66967.0,66957.0,0.149348]
[1729884458487,0.29983181,66967.0,66957.0,0.149349]
[1729884458704,0.29983181,66967.0,66956.0,0.23016268]
[1729884458705,0.15050381,66967.0,66956.0,0.23016268]
[1729884458923,0.15050381,66967.0,66958.0,0.149346]
[1729884459158,0.04256665,66972.0,66956.0,0.23016268]
[1729884459159,0.0813,66978.0,66961.0,0.005]
[1729884459418,0.15050381,66974.0,66969.0,0.149321]
[1729884459879,0.15050381,66974.0,66968.0,0.149325]
[1729884460314,0.15050381,66974.0,66964.0,0.52882968]
[1729884460538,0.15050381,66974.0,66965.0,0.22516268]
[1729884460775,0.15214581,66974.0,66966.0,0.149328]
[1729884461225,0.15214581,66974.0,66969.0,0.149322]
[1729884461438,0.15214581,66974.0,66964.0,0.005821]
[1729884461853,0.18291626,66974.0,66964.0,0.005821]
[1729884462307,0.15214581,66974.0,66965.0,0.149331]
[1729884462523,0.15214581,66974.0,66962.0,0.385375]
[1729884462752,0.149317,66972.0,66963.0,0.149334]
[1729884462980,0.15050381,66972.0,66962.0,0.005]
[1729884463449,0.15050381,66972.0,66963.0,0.149335]
[1729884463705,0.15050381,66972.0,66962.0,0.005]
[1729884463923,0.29981981,66972.0,66962.0,0.154336]
[1729884464148,0.005,66949.0,66940.0,0.22516268]
[1729884464404,0.30375086,66945.0,66940.0,0.22516268]
[1729884465060,0.149376,66945.0,66940.0,0.22516268]
[1729884465284,0.149376,66945.0,66933.0,0.149402]
[1729884465499,0.15050381,66945.0,66936.0,0.150239]
[1729884465708,0.15050381,66945.0,66936.0,0.000845]
[1729884465915,0.29987981,66945.0,66936.0,0.000845]
[1729884466122,0.15050381,66945.0,66936.0,0.000845]
[1729884466363,0.29987981,66945.0,66936.0,0.000845]
[1729884467071,0.40365186,66945.0,66936.0,0.000845]
[1729884467768,0.64041433,66945.0,66936.0,0.000845]
[1729884468642,0.92161433,66945.0,66936.0,0.000845]
[1729884468892,0.64615647,66937.0,66936.0,0.000845]
[1729884469114,0.79666028,66937.0,66936.0,0.000845]
[1729884469577,0.94716409,66937.0,66936.0,0.000845]
[1729884470077,0.39618547,66924.0,66923.0,0.000821]
[1729884470528,0.39618547,66924.0,66918.0,0.22516268]
[1729884470529,0.005,66917.0,66912.0,0.22516268]
[1729884470737,0.149447,66913.0,66912.0,0.22516268]
[1729884470963,0.448336,66914.0,66909.0,0.000845]
[1729884471193,0.149454,66910.0,66909.0,0.000845]
[1729884471407,0.29995781,66910.0,66909.0,0.000845]
[1729884472297,0.30495781,66910.0,66909.0,0.000845]
[1729884472545,0.30495781,66910.0,66892.0,0.00651514]
[1729884472546,0.14948,66899.0,66890.0,0.149498]
[1729884472787,0.14948,66899.0,66889.0,0.005]
[1729884472788,0.149481,66898.0,66889.0,0.1545]
[1729884472993,0.15050381,66903.0,66897.0,0.000845]
[1729884473238,0.149473,66902.0,66897.0,0.000845]
[1729884473441,0.149478,66900.0,66897.0,0.000845]
[1729884473654,0.29997781,66901.0,66897.0,0.000845]
[1729884474314,0.15050381,66901.0,66897.0,0.000845]
[1729884476374,0.29997881,66901.0,66897.0,0.000845]
[1729884476809,0.15050381,66901.0,66897.0,0.000845]
[1729884477032,0.149477,66900.0,66897.0,0.000845]
[1729884477927,0.15050381,66901.0,66897.0,0.000845]
[1729884479401,0.149479,66899.0,66897.0,0.000845]
[1729884479619,0.29997981,66901.0,66897.0,0.000845]
[1729884479833,0.149479,66899.0,66897.0,0.000845]
[1729884480055,0.29997881,66901.0,66897.0,0.000845]
[1729884480481,0.298953,66900.0,66897.0,0.000845]
[1729884480697,0.149481,66898.0,66897.0,0.000845]
[1729884480911,0.149477,66900.0,66897.0,0.000845]
[1729884481388,0.15050381,66901.0,66897.0,0.000845]
[1729884481650,0.404481,66898.0,66897.0,0.000845]
[1729884481903,0.404481,66898.0,66880.0,0.22516268]
[1729884481904,0.39424747,66896.0,66880.0,0.22516268]
[1729884482133,0.54675128,66896.0,66880.0,0.22516268]
[1729884482363,0.69725509,66896.0,66880.0,0.22516268]
[1729884482585,0.69725509,66896.0,66883.0,0.22516268]
[1729884482586,0.23476247,66884.0,66883.0,0.22516268]
[1729884482784,0.23476247,66884.0,66877.0,0.00069244]
[1729884482785,0.149526,66878.0,66877.0,0.00069244]
[1729884483092,0.30002981,66878.0,66877.0,0.00069244]
[1729884483296,0.55002981,66878.0,66877.0,0.00069244]
[1729884483548,0.005,66885.0,66877.0,0.00069244]
[1729884483549,0.25,66893.0,66877.0,0.00069244]
[1729884483769,1.1,66896.0,66877.0,0.00069244]
[1729884483770,1.1,66896.0,66884.0,0.005]
[1729884484006,1.1,66896.0,66877.0,0.00069244]
[1729884484007,0.7,66896.0,66894.0,0.14949]
[1729884484267,0.149477,66900.0,66892.0,0.149494]
[1729884484456,0.149477,66900.0,66890.0,0.298998]
[1729884484457,0.22516268,66899.0,66893.0,0.149491]
[1729884484701,0.22516268,66899.0,66889.0,0.005]
[1729884484702,0.149489,66895.0,66889.0,0.005]
[1729884484926,0.15050381,66898.0,66889.0,0.154501]
[1729884485176,0.14949,66895.0,66889.0,0.005]
[1729884485385,0.14951,66886.0,66879.0,0.005]
[1729884485631,0.15550381,66894.0,66878.0,0.22516268]
[1729884485632,0.149523,66879.0,66878.0,0.22516268]
[1729884485851,0.15050381,66879.0,66877.0,0.00069244]
[1729884486080,0.15050381,66878.0,66877.0,0.00069244]
[1729884486299,0.30002981,66878.0,66877.0,0.00069244]
[1729884487177,0.15050381,66878.0,66877.0,0.00069244]
[1729884487615,0.299023,66885.0,66877.0,0.00069244]
[1729884487616,0.005,66888.0,66877.0,0.00569244]
[1729884487846,0.15050381,66888.0,66886.0,0.149506]
[1729884488064,0.15050381,66888.0,66883.0,0.149513]
[1729884488271,0.15050381,66888.0,66880.0,0.299043]
[1729884488479,0.15050381,66888.0,66885.0,0.149509]
[1729884488693,0.15050381,66888.0,66878.0,0.005]
[1729884488694,0.005,66897.0,66884.0,0.005]
[1729884488916,0.005,66897.0,66880.0,0.23476247]
[1729884488917,0.22516268,66895.0,66889.0,0.005]
[1729884489207,0.22516268,66895.0,66887.0,0.0836]
[1729884489398,0.22516268,66895.0,66888.0,0.149503]
[1729884489662,0.005,66900.0,66887.0,0.0836]
[1729884489894,0.149481,66898.0,66889.0,0.299002]
[1729884490117,0.15050381,66897.0,66888.0,0.149503]
[1729884490349,0.15050381,66898.0,66890.0,0.149499]
[1729884490581,0.149484,66897.0,66890.0,0.149499]
[1729884490824,0.15050381,66898.0,66891.0,0.149496]
[1729884491041,0.15050381,66898.0,66889.0,0.154499]
[1729884491042,0.149486,66896.0,66889.0,0.154499]
[1729884491312,0.59894981,66898.0,66890.0,0.149498]
[1729884491759,0.15050381,66898.0,66890.0,0.298998]
[1729884491987,0.298967,66897.0,66889.0,0.005]
[1729884492227,0.448452,66897.0,66889.0,0.1545]
[1729884492459,0.298976,66895.0,66887.0,0.0786]
[1729884492689,0.15050381,66896.0,66884.0,0.005]
[1729884492935,0.149494,66892.0,66885.0,0.149509]
[1729884493375,0.14949,66894.0,66887.0,0.005]
[1729884493595,0.14949,66894.0,66887.0,0.154504]
[1729884494506,0.15050381,66896.0,66887.0,0.154504]
[1729884494718,0.149495,66892.0,66884.0,0.304024]
[1729884494939,0.149492,66894.0,66887.0,0.005]
[1729884495141,0.17289433,66894.0,66887.0,0.005]
[1729884495355,0.02340233,66894.0,66888.0,0.149501]
[1729884495534,0.02340233,66894.0,66888.0,0.299007]
[1729884495787,0.02340233,66894.0,66891.0,0.149495]
[1729884496221,0.149492,66893.0,66887.0,0.154504]
[1729884496444,0.02340233,66894.0,66887.0,0.005]
[1729884496653,0.17289333,66894.0,66887.0,0.154503]
[1729884496866,0.17453733,66894.0,66887.0,0.154503]
[1729884497327,0.17453733,66894.0,66887.0,0.154505]
[1729884497328,0.149492,66893.0,66887.0,0.154505]
[1729884497556,0.02504633,66894.0,66889.0,0.1495]
[1729884497789,0.02504633,66894.0,66887.0,0.304009]
[1729884498008,0.02504633,66894.0,66888.0,0.149503]
[1729884498491,0.149496,66892.0,66887.0,0.005]
[1729884498707,0.17453733,66894.0,66887.0,0.005]
[1729884498932,0.17453733,66894.0,66888.0,0.149503]
[1729884499853,0.02504633,66894.0,66891.0,0.149496]
[1729884500071,0.02504633,66894.0,66888.0,0.299007]
[1729884500297,0.02504633,66894.0,66889.0,0.149501]
[1729884500572,0.02504633,66894.0,66888.0,0.299007]
[1729884500796,0.02504633,66894.0,66889.0,0.149501]
[1729884501283,0.02504633,66894.0,66893.0,0.232692]
[1729884501516,0.02504633,66894.0,66893.0,0.396185]
[1729884501517,0.001644,66894.0,66893.0,0.396185]
[1729884501732,0.001644,66894.0,66893.0,0.39819581]
[1729884503394,0.001644,66894.0,66893.0,0.40019581]
[1729884503626,0.22516268,66910.0,66909.0,0.154456]
[1729884504287,0.22740425,66918.0,66914.0,0.149443]
[1729884504719,0.22740425,66918.0,66915.0,0.149442]
[1729884504954,0.00224157,66918.0,66915.0,0.149442]
[1729884505714,0.00224157,66918.0,66911.0,0.005]
[1729884505941,0.4,66936.0,66929.0,0.005]
[1729884506177,0.22516268,66935.0,66934.0,0.1494]
[1729884506408,0.22516268,66935.0,66934.0,0.1544]
[1729884506628,0.22516268,66945.0,66944.0,0.149378]
[1729884507093,0.22516268,66945.0,66940.0,0.005]
[1729884507321,0.298757,66944.0,66937.0,0.005]
[1729884507548,0.15050381,66951.0,66937.0,0.005]
[1729884507770,0.149389,66940.0,66936.0,0.005]
[1729884508008,0.15050381,66951.0,66937.0,0.005]
[1729884508280,0.22516268,66945.0,66937.0,0.154394]
[1729884508485,0.22516268,66945.0,66924.0,0.23476247]
[1729884508486,0.15050381,66944.0,66929.0,0.149411]
[1729884508701,0.07837911,66943.0,66930.0,0.37456968]
[1729884508922,0.1494,66935.0,66930.0,0.37456968]
[1729884509145,0.15050381,66935.0,66924.0,0.005]
[1729884509381,0.15050381,66935.0,66921.0,0.52401768]
[1729884509382,0.298806,66933.0,66921.0,0.22516268]
[1729884509614,0.149427,66922.0,66918.0,0.005]
[1729884509831,0.149423,66924.0,66919.0,0.149434]
[1729884510059,0.149421,66925.0,66920.0,0.14943]
[1729884510283,0.22516268,66929.0,66918.0,0.005]
[1729884510523,0.15050381,66928.0,66918.0,0.005]
[1729884510764,0.15050381,66928.0,66916.0,0.005]
[1729884510972,0.298837,66926.0,66916.0,0.005]
[1729884511183,0.15050381,66925.0,66916.0,0.005]
[1729884511392,0.149431,66921.0,66916.0,0.005]
[1729884511810,0.149431,66921.0,66917.0,0.149438]
[1729884512551,0.29885,66923.0,66913.0,0.154446]
[1729884512954,0.149433,66920.0,66914.0,0.154445]
[1729884513665,0.298846,66924.0,66916.0,0.005]
[1729884513873,0.298846,66924.0,66901.0,0.47649334]
[1729884513874,0.23476247,66916.0,66904.0,0.005]
[1729884514081,0.52618996,66915.0,66904.0,0.154465]
[1729884514256,0.149451,66912.0,66904.0,0.154465]
[1729884514703,0.149451,66912.0,66904.0,0.005]
[1729884514961,0.15169287,66912.0,66905.0,0.149464]
[1729884515134,0.15169287,66912.0,66904.0,0.005]
[1729884515135,0.00224187,66912.0,66906.0,0.149462]
[1729884515477,0.15169287,66912.0,66904.0,0.154466]
[1729884516143,0.22516268,66911.0,66909.0,0.005]
[1729884516362,0.22516268,66911.0,66907.0,0.005]
[1729884516571,0.00224187,66912.0,66910.0,0.005]
[1729884517673,0.25,66903.0,66891.0,0.0771]
[1729884517879,0.149477,66900.0,66894.0,0.23016268]
[1729884518094,0.149477,66900.0,66894.0,0.005]
[1729884518320,0.22516268,66901.0,66891.0,0.005]
[1729884518543,0.22516268,66901.0,66889.0,0.005]
[1729884518544,0.37566649,66901.0,66889.0,0.005]
[1729884518746,0.149491,66894.0,66890.0,0.005]
[1729884518963,0.24011178,66893.0,66884.0,0.005]
[1729884519174,0.15050381,66893.0,66884.0,0.005]
[1729884519596,0.149502,66889.0,66884.0,0.005]
[1729884519846,0.149504,66888.0,66884.0,0.005]
[1729884520025,0.22516268,66890.0,66880.0,0.005822]
[1729884520239,0.149508,66886.0,66880.0,0.005822]
[1729884520448,0.149498,66891.0,66888.0,0.005]
[1729884520663,0.4,66900.0,66880.0,0.000822]
[1729884520664,0.4,66900.0,66892.0,0.005]
[1729884520884,0.22516268,66893.0,66886.0,0.149506]
[1729884521121,0.149483,66897.0,66893.0,0.005]
[1729884521331,0.22516268,66900.0,66892.0,0.005]
[1729884521542,0.22516268,66900.0,66884.0,0.1919]
[1729884521543,0.25,66891.0,66884.0,0.005]
[1729884521753,0.25,66891.0,66883.0,0.005]
[1729884521979,0.149509,66886.0,66883.0,0.005]
[1729884522200,0.149517,66882.0,66881.0,0.005]
[1729884522453,0.399519,66881.0,66880.0,0.000822]
[1729884522666,0.55002281,66881.0,66880.0,0.000822]
[1729884522875,0.55502281,66881.0,66880.0,0.000822]
[1729884523541,0.55502281,66881.0,66866.0,0.005]
[1729884523542,0.25,66872.0,66838.0,0.005]
[1729884523775,0.301047,66879.0,66806.0,0.18425409]
[1729884523776,0.01,66807.0,66806.0,0.18425409]
[1729884523976,0.01,66807.0,66765.0,0.36724628]
[1729884523977,0.154691,66804.0,66784.0,0.23476247]
[1729884524191,0.154691,66804.0,66771.0,0.38952747]
[1729884524192,0.005,66815.0,66801.0,0.0854]
[1729884524407,0.005,66805.0,66803.0,0.16268285]
[1729884524646,0.34841923,66821.0,66803.0,0.16268285]
[1729884524647,0.005,66815.0,66808.0,0.005]
[1729884524857,0.005,66817.0,66814.0,0.005]
[1729884525061,0.0778464,66817.0,66816.0,0.005]
[1729884527669,0.0778464,66817.0,66810.0,0.299356]
[1729884527879,0.0778464,66817.0,66812.0,0.149672]
[1729884528093,0.0778464,66817.0,66808.0,0.299365]
[1729884528312,0.0778464,66817.0,66806.0,0.005]
[1729884528551,0.0778464,66817.0,66808.0,0.36120991]
[1729884528769,0.0778464,66817.0,66809.0,0.00299309]
[1729884528982,0.0778464,66817.0,66812.0,0.149672]
[1729884529165,0.0778464,66817.0,66813.0,0.00299309]
[1729884529396,0.0778464,66817.0,66812.0,0.149671]
[1729884529618,0.0778464,66817.0,66813.0,0.00299309]
[1729884529867,0.0778464,66817.0,66815.0,0.149666]
[1729884530181,0.0778464,66817.0,66813.0,0.15266309]
[1729884530636,0.0778464,66817.0,66814.0,0.149668]
[1729884531314,0.0778464,66817.0,66813.0,0.00299309]
[1729884531315,0.0778464,66817.0,66813.0,0.15266309]
[1729884531552,0.0778464,66817.0,66816.0,0.22450889]
[1729884531771,0.0778464,66817.0,66816.0,0.37417289]
[1729884532005,0.0778464,66817.0,66816.0,0.5296767]
[1729884532958,0.0778464,66817.0,66816.0,0.149664]
[1729884533193,0.0778464,66817.0,66814.0,0.66054391]
[1729884533428,0.0778464,66817.0,66815.0,0.22450889]
[1729884533914,0.0778464,66817.0,66814.0,0.36120991]
[1729884534130,0.0778464,66817.0,66815.0,0.22450889]
[1729884534820,0.0778464,66817.0,66807.0,0.299365]
[1729884535065,0.0778464,66817.0,66816.0,0.149664]
[1729884535531,0.0778464,66817.0,66816.0,0.150487]
[1729884535754,0.0804924,66817.0,66816.0,0.150487]
[1729884536188,0.07982777,66817.0,66816.0,0.150487]
[1729884536647,0.07982777,66817.0,66816.0,0.15347999]
[1729884537086,0.07982777,66817.0,66816.0,0.150487]
[1729884537748,0.07982777,66817.0,66816.0,0.15348]
[1729884538395,0.07982777,66817.0,66816.0,0.30099081]
[1729884538622,0.07982777,66817.0,66816.0,0.30898381]
[1729884538853,0.002646,66817.0,66816.0,0.30898381]
[1729884540718,0.001646,66817.0,66816.0,0.54059864]
[1729884540925,0.001646,66817.0,66816.0,0.49789081]
[1729884541819,0.001646,66817.0,66816.0,0.57479081]
[1729884542052,0.08684915,66877.0,66863.0,0.0659]
[1729884542263,0.22450889,66867.0,66866.0,0.149552]
[1729884542480,0.07690703,66871.0,66853.0,0.005]
[1729884542715,0.002,66875.0,66850.0,0.005]
[1729884542951,0.299069,66874.0,66850.0,0.005]
[1729884543188,0.002,66875.0,66844.0,0.01175421]
[1729884543189,0.299065,66875.0,66844.0,0.005]
[1729884543399,0.01,66877.0,66844.0,0.005]
[1729884543623,0.01,66877.0,66838.0,0.1101]
[1729884543624,0.002,66866.0,66838.0,0.1101]
[1729884543828,0.005,66869.0,66838.0,0.1101]
[1729884543829,0.149567,66860.0,66850.0,0.149588]
[1729884544069,0.005,66869.0,66838.0,0.0842]
[1729884544294,0.149567,66860.0,66850.0,0.149587]
[1729884544507,0.15050381,66860.0,66851.0,0.149585]
[1729884544744,0.15109325,66859.0,66845.0,0.299195]
[1729884544964,0.15109325,66859.0,66851.0,0.149584]
[1729884545428,0.15109325,66859.0,66848.0,0.22450889]
[1729884545704,0.15109325,66859.0,66850.0,0.149587]
[1729884545910,0.15109325,66859.0,66848.0,0.22450889]
[1729884545911,0.00058944,66859.0,66858.0,0.14957]
[1729884546341,0.00058944,66859.0,66858.0,0.51077991]
[1729884547046,0.00058944,66859.0,66858.0,0.66628372]
[1729884548378,0.00058944,66859.0,66858.0,0.54020603]
[1729884548588,0.00058944,66859.0,66858.0,0.53520603]
[1729884548820,0.00058944,66859.0,66858.0,0.14957]
[1729884549525,0.00058944,66859.0,66854.0,0.299158]
[1729884549747,0.149571,66858.0,66851.0,0.29917]
[1729884549970,0.00058944,66857.0,66853.0,0.149581]
[1729884550187,0.00058944,66857.0,66852.0,0.67325789]
[1729884550423,0.00058944,66857.0,66852.0,0.22450889]
[1729884550642,0.149576,66856.0,66836.0,0.36586045]
[1729884550878,0.00058944,66855.0,66849.0,0.22450889]
[1729884551096,0.00058944,66855.0,66842.0,0.22450889]
[1729884551322,0.00058944,66855.0,66836.0,0.36586045]
[1729884551323,0.15050381,66854.0,66844.0,0.299204]
[1729884551543,0.00058944,66853.0,66845.0,0.448798]